bitfinex/quotes_ETHUSD_20250905
["timestamp","ask_amount","ask_price","bid_price","bid_amount"]
[1757090654216,3.1966883,4304.8,4304.7,0.21577831]
[1757090654514,3.6344883,4304.8,4304.7,0.21577831]
[1757090654875,2.32304225,4304.7,4304.6,0.004]
[1757090655119,6.71014225,4304.7,4304.6,0.21949265]
[1757090655408,7.43754225,4304.7,4304.6,0.004]
[1757090663390,6.99974225,4304.7,4304.6,0.004]
[1757090663848,7.43754225,4304.7,4304.6,0.004]
[1757090664297,2.32304225,4304.7,4304.6,0.004]
[1757090664499,6.24304225,4304.7,4304.6,0.004]
[1757090664718,6.24304225,4304.7,4304.6,0.7594]
[1757090665447,3.92,4304.7,4304.6,0.7594]
[1757090665652,3.919,4304.7,4304.6,1.44600163]
[1757090665848,14.24645058,4304.7,4304.6,0.004]
[1757090666011,14.71355058,4304.7,4304.6,0.004]
[1757090666210,15.15135058,4304.7,4304.6,0.004]
[1757090667227,14.71355058,4304.7,4304.6,0.004]
[1757090667806,15.15135058,4304.7,4304.6,0.004]
[1757090670420,13.95685058,4304.7,4304.6,0.004]
[1757090671246,14.24645058,4304.7,4304.6,0.004]
[1757090672815,2.32304225,4304.7,4304.6,0.315]
[1757090673017,6.24204225,4304.7,4304.6,0.315]
[1757090673217,6.24204225,4304.7,4304.6,0.7594]
[1757090673415,6.24204225,4304.7,4304.6,0.315]
[1757090674311,6.24204225,4304.7,4304.6,0.7594]
[1757090674748,6.24204225,4304.7,4304.6,0.315]
[1757090675237,6.53164225,4304.7,4304.6,0.004]
[1757090676452,6.24204225,4304.7,4304.6,0.315]
[1757090677349,6.24204225,4304.7,4304.6,0.7594]
[1757090677657,3.919,4304.7,4304.6,0.7594]
[1757090677859,6.24204225,4304.7,4304.6,0.7594]
[1757090678036,3.919,4304.7,4304.6,0.7594]
[1757090678356,3.919,4304.7,4304.6,1.2302]
[1757090678657,2.32400252,4304.8,4304.6,1.2302]
[1757090678962,0.00100001,4304.8,4304.6,0.315]
[1757090679265,0.00100001,4304.8,4304.7,0.4708]
[1757090679561,0.00100001,4304.8,4304.7,0.9037]
[1757090679739,3.92000001,4304.8,4304.7,1.2185]
[1757090679934,6.2429883,4304.8,4304.7,0.7477]
[1757090680139,6.2429883,4304.8,4304.7,0.3148]
[1757090680364,6.2429883,4304.8,4304.7,0.96347631]
[1757090683231,6.2429883,4304.8,4304.7,0.96363979]
[1757090684631,3.92000001,4304.8,4304.7,0.96363979]
[1757090684964,6.2429883,4304.8,4304.7,0.96363979]
[1757090685462,6.2429883,4304.8,4304.7,0.53073979]
[1757090685760,6.2429883,4304.8,4304.7,0.21593979]
[1757090686371,7.4527883,4304.8,4304.7,0.21593979]
[1757090686667,2.43904225,4304.7,4304.6,0.004]
[1757090686834,2.43904225,4304.7,4304.6,0.22013085]
[1757090688745,0.116,4304.7,4304.6,0.53493085]
[1757090688945,2.43904225,4304.7,4304.6,0.53493085]
[1757090689273,2.43904225,4304.7,4304.6,0.96783085]
[1757090689468,0.116,4304.7,4304.6,0.96783085]
[1757090689665,0.116,4304.7,4304.6,1.45143085]
[1757090689867,6.35704225,4304.7,4304.6,0.96783085]
[1757090691077,4.034,4304.7,4304.6,0.96783085]
[1757090691444,6.35704225,4304.7,4304.6,0.96783085]
[1757090691964,6.35604225,4304.7,4304.6,0.96783085]
[1757090692771,4.033,4304.7,4304.6,0.96783085]
[1757090693068,0.116,4304.7,4304.6,0.53493085]
[1757090693239,4.033,4304.7,4304.6,0.96783085]
[1757090694074,4.033,4304.7,4304.6,3.29092707]
[1757090694374,3.91800001,4304.8,4304.7,2.32304225]
[1757090694553,3.91800001,4304.8,4304.7,3.7704731]
[1757090694971,0.00100001,4304.8,4304.7,3.7704731]
[1757090696347,0.00100001,4304.8,4304.7,6.7704731]
[1757090696679,0.00100001,4304.8,4304.7,7.58465167]
[1757090697002,0.00100001,4304.8,4304.7,9.17350359]
[1757090698146,0.00100001,4304.8,4304.7,23.67350359]
[1757090700379,0.00100001,4304.8,4304.7,27.58950359]
[1757090700682,0.00100001,4304.8,4304.7,27.10590359]
[1757090700879,0.00100001,4304.8,4304.7,27.58950359]
[1757090703382,0.00100001,4304.8,4304.7,27.10590359]
[1757090704289,0.78210001,4304.8,4304.7,0.91430942]
[1757090704497,1.21080001,4304.8,4304.7,0.21613085]
[1757090704857,0.78210001,4304.8,4304.7,0.21613085]
[1757090705254,1.21080001,4304.8,4304.7,0.21613085]
[1757090705557,0.78210001,4304.8,4304.7,0.21613085]
[1757090707758,1.21080001,4304.8,4304.7,0.21613085]
[1757090708588,8.92560834,4304.8,4304.7,0.21613085]
[1757090708794,11.24859663,4304.8,4304.7,0.21613085]
[1757090709086,0.116,4304.7,4304.6,0.004]
[1757090709401,1.0308,4304.7,4304.6,0.21966537]
[1757090709600,1.3334,4304.7,4304.6,0.21966537]
[1757090710794,3.65644225,4304.7,4304.6,0.21966537]
[1757090710956,1.3334,4304.7,4304.6,0.21966537]
[1757090711564,7.89190545,4304.7,4304.6,0.21966537]
[1757090712789,10.2149477,4304.7,4304.6,0.21966537]
[1757090712992,10.2149477,4304.7,4304.6,0.004]
[1757090717101,9.7839477,4304.7,4304.6,0.004]
[1757090717304,6.86110545,4304.7,4304.6,0.004]
[1757090717467,0.09412754,4304.8,4304.6,0.7537]
[1757090717667,3.91600001,4304.8,4304.7,0.4534]
[1757090717902,3.91600001,4304.8,4304.7,3.28822825]
[1757090718102,0.00100001,4304.8,4304.7,3.28822825]
[1757090718411,0.00100001,4304.8,4304.7,5.82017545]
[1757090721190,0.00100001,4304.8,4304.7,3.76132825]
[1757090721372,0.00100001,4304.8,4304.7,21.26132825]
[1757090722109,0.00100001,4304.8,4304.7,25.17532825]
[1757090722805,0.00100001,4304.8,4304.7,21.26132825]
[1757090723113,0.00100001,4304.8,4304.7,20.78822825]
[1757090723406,0.00100001,4304.8,4304.7,17.78822825]
[1757090723606,0.00100001,4304.8,4304.7,17.45082825]
[1757090724311,0.00100001,4304.8,4304.7,20.17213622]
[1757090724881,0.00100001,4304.8,4304.7,19.71873622]
[1757090725482,0.00100001,4304.8,4304.7,20.17213622]
[1757090726229,0.30360001,4304.8,4304.7,17.09939397]
[1757090726384,0.78740001,4304.8,4304.7,14.831486]
[1757090726585,1.21840001,4304.8,4304.7,14.831486]
[1757090726783,1.21840001,4304.8,4304.7,0.331486]
[1757090727024,1.21840001,4304.8,4304.7,0.215486]
[1757090727190,1.33440001,4304.8,4304.7,0.215486]
[1757090727518,0.90340001,4304.8,4304.7,0.215486]
[1757090727983,1.33440001,4304.8,4304.7,0.215486]
[1757090728322,0.90340001,4304.8,4304.7,0.215486]
[1757090728525,0.90340001,4304.8,4304.7,0.21558134]
[1757090729032,0.90340001,4304.8,4304.7,0.21562151]
[1757090729033,1.33440001,4304.8,4304.7,0.21562151]
[1757090729524,0.11700001,4304.8,4304.7,0.51192151]
[1757090730411,0.41960001,4304.8,4304.7,0.21562151]
[1757090731323,0.11700001,4304.8,4304.7,0.21562151]
[1757090731484,0.11700001,4304.8,4304.7,2.83496376]
[1757090732385,0.11700001,4304.8,4304.7,2.61934225]
[1757090732585,0.11700001,4304.8,4304.7,2.83499503]
[1757090733484,0.00100001,4304.8,4304.7,4.27453257]
[1757090733945,0.00100001,4304.8,4304.7,18.77453257]
[1757090734117,0.00100001,4304.8,4304.7,18.30143257]
[1757090734314,0.00100001,4304.8,4304.7,14.71565278]
[1757090734517,0.30360001,4304.8,4304.7,17.03869503]
[1757090734710,0.30360001,4304.8,4304.7,14.71565278]
[1757090735016,0.78740001,4304.8,4304.7,14.71565278]
[1757090735185,1.33440001,4304.8,4304.7,14.71565278]
[1757090735382,1.33440001,4304.8,4304.7,14.5]
[1757090735719,1.33440001,4304.8,4304.7,0.21577141]
[1757090736123,0.90340001,4304.8,4304.7,0.21577141]
[1757090736521,0.90340001,4304.8,4304.7,2.53881366]
[1757090736818,0.90340001,4304.8,4304.7,2.83511366]
[1757090736819,0.11700001,4304.8,4304.7,2.83511366]
[1757090737018,0.00100001,4304.8,4304.7,5.55642163]
[1757090737318,0.00100001,4304.8,4304.7,6.02952163]
[1757090737499,0.00100001,4304.8,4304.7,9.94152163]
[1757090738391,0.00100001,4304.8,4304.7,13.05752163]
[1757090739289,0.00100001,4304.8,4304.7,13.15060323]
[1757090742696,0.00100001,4304.8,4304.7,13.14997056]
[1757090743129,0.00100001,4304.8,4304.7,12.67687056]
[1757090743632,0.00100001,4304.8,4304.7,13.14307056]
[1757090744823,0.00100001,4304.8,4304.7,12.67687056]
[1757090745401,0.00100001,4304.8,4304.7,13.14307056]
[1757090746537,0.00100001,4304.8,4304.7,12.67687056]
[1757090748406,0.00100001,4304.8,4304.7,13.14307056]
[1757090749152,0.00100001,4304.8,4304.7,20.49357601]
[1757090749322,1e-08,4305.0,4304.9,3.11493433]
[1757090749506,1e-08,4305.0,4304.9,10.26430241]
[1757090749708,1e-08,4305.0,4304.9,18.00017852]
[1757090750142,1e-08,4305.0,4304.9,18.09324517]
[1757090750316,1e-08,4305.0,4304.9,18.32604517]
[1757090750517,1e-08,4305.0,4304.9,20.59395314]
[1757090751633,1e-08,4305.0,4304.9,20.70995314]
[1757090753363,1e-08,4305.0,4304.9,20.70959174]
[1757090761874,1e-08,4305.8,4305.7,18.4081921]
[1757090764893,1e-08,4305.8,4305.7,19.3178921]
[1757090765779,1e-08,4305.8,4305.7,18.8516921]
[1757090767163,1e-08,4305.8,4305.7,12.29318665]
[1757090767359,1e-08,4305.8,4305.7,11.84968665]
[1757090767560,1e-08,4305.8,4305.7,12.75938665]
[1757090769882,1e-08,4305.8,4305.7,12.75909692]
[1757090770454,1e-08,4305.8,4305.7,12.99189692]
[1757090770688,1e-08,4305.8,4305.7,13.10789692]
[1757090771584,1e-08,4305.8,4305.7,20.81318077]
[1757090773459,0.4588,4308.5,4307.7,2.32142442]
[1757090773754,0.09303851,4309.5,4307.7,2.32142442]
[1757090773755,7.70528385,4309.4,4307.7,7.68291203]
[1757090773963,0.3208,4307.8,4307.7,5.53591203]
[1757090774168,0.7796,4307.8,4307.7,9.44291203]
[1757090775362,0.7796,4307.8,4307.7,0.21448761]
[1757090775561,1.2685,4307.8,4307.7,4.12148761]
[1757090775788,1.2685,4307.8,4307.7,0.21448761]
[1757090776086,1.2685,4307.8,4307.7,4.12148761]
[1757090776290,1.2685,4307.8,4307.7,0.21448761]
[1757090776454,1.39535,4307.8,4307.7,0.21448761]
[1757090776889,0.8097,4307.8,4307.7,3.907]
[1757090777080,1.2685,4307.8,4307.7,9.44291203]
[1757090777282,1.2685,4307.8,4307.7,9.44391203]
[1757090777672,1.2685,4307.8,4307.7,5.53591203]
[1757090777868,1.2685,4307.8,4307.7,9.44391203]
[1757090778072,1.2685,4307.8,4307.7,23.94391203]
[1757090778671,1.2685,4307.8,4307.7,23.94591203]
[1757090780992,1.2695,4307.8,4307.7,21.62248761]
[1757090781194,1.2695,4307.8,4307.7,23.94391203]
[1757090782204,1.2695,4307.8,4307.7,21.62248761]
[1757090782368,1.2695,4307.8,4307.7,23.94391203]
[1757090782767,1.2695,4307.8,4307.7,14.71448761]
[1757090783108,1.2695,4307.8,4307.7,18.62148761]
[1757090783594,1.2695,4307.8,4307.7,20.94291203]
[1757090783795,1.2695,4307.8,4307.7,18.62148761]
[1757090784576,1.2695,4307.8,4307.7,17.03591203]
[1757090784898,1.2695,4307.8,4307.7,20.94291203]
[1757090786290,1.2695,4307.8,4307.7,14.71448761]
[1757090786493,1.2695,4307.8,4307.7,18.62048761]
[1757090787382,1.2695,4307.8,4307.7,14.71448761]
[1757090787585,1.2695,4307.8,4307.7,20.94191203]
[1757090788178,1.2695,4307.8,4307.7,14.71448761]
[1757090788390,1.40805,4307.8,4307.7,18.62048761]
[1757090788910,3.72942053,4307.8,4307.7,0.21448761]
[1757090789205,2.43742442,4307.7,4307.3,3.906]
[1757090789385,3.26912442,4307.7,4307.4,0.2151979]
[1757090789584,0.4889,4307.6,4307.5,0.2151979]
[1757090789798,0.9477,4307.6,4307.5,0.2151979]
[1757090789971,0.7546,4307.6,4307.5,0.2151979]
[1757090790180,0.2958,4307.6,4307.5,2.53673011]
[1757090791124,0.2958,4307.6,4307.5,2.53668735]
[1757090791517,0.116,4307.7,4307.5,2.53668735]
[1757090791518,0.116,4307.7,4307.6,2.32147831]
[1757090791711,0.116,4307.7,4307.6,6.44263345]
[1757090792024,0.4118,4307.7,4307.6,6.44263345]
[1757090792888,0.116,4307.7,4307.6,6.44263345]
[1757090793089,0.026,4307.8,4307.7,5.32142442]
[1757090793299,0.4848,4307.8,4307.7,17.03657956]
[1757090793499,0.7806,4307.8,4307.7,17.03657956]
[1757090794112,0.3218,4307.8,4307.7,17.03657956]
[1757090794614,0.026,4307.8,4307.7,18.30177956]
[1757090794934,0.026,4307.8,4307.7,20.11268753]
[1757090795301,0.026,4307.8,4307.7,19.61948753]
[1757090795494,0.026,4307.8,4307.7,22.61948753]
[1757090796716,0.3218,4307.8,4307.7,22.30448753]
[1757090796926,0.026,4307.8,4307.7,26.21048753]
[1757090797130,0.026,4307.8,4307.7,26.52548753]
[1757090798031,0.3218,4307.8,4307.7,26.21048753]
[1757090798193,0.3218,4307.8,4307.7,23.94257956]
[1757090798699,0.026,4307.8,4307.7,23.94257956]
[1757090798900,0.026,4307.8,4307.7,24.25757956]
[1757090799230,0.026,4307.8,4307.7,25.14647956]
[1757090800928,0.026,4307.8,4307.7,26.05447956]
[1757090801127,0.026,4307.8,4307.7,28.32238753]
[1757090801295,0.026,4307.8,4307.7,29.01996704]
[1757090806540,0.026,4307.8,4307.7,33.21996704]
[1757090806899,0.026,4307.8,4307.7,28.88216704]
[1757090807098,0.026,4307.8,4307.7,33.21996704]
[1757090808527,0.026,4307.8,4307.7,23.11806704]
[1757090808716,0.3246,4307.8,4307.7,27.02406704]
[1757090809090,0.3246,4307.8,4307.7,26.32648753]
[1757090809227,0.026,4307.8,4307.7,26.32648753]
[1757090809606,0.026,4307.8,4307.7,26.63898753]
[1757090809803,0.026,4307.8,4307.7,26.32648753]
[1757090810016,0.3246,4307.8,4307.7,22.42048753]
[1757090810338,0.3246,4307.8,4307.7,26.32548753]
[1757090810639,0.026,4307.8,4307.7,26.32548753]
[1757090810828,0.026,4307.8,4307.7,22.73298753]
[1757090811032,0.026,4307.8,4307.7,26.63798753]
[1757090811646,0.026,4307.8,4307.7,27.52688753]
[1757090812324,0.026,4307.8,4307.7,27.52627254]
[1757090812650,0.026,4307.8,4307.7,28.31827254]
[1757090812835,0.026,4307.8,4307.7,28.20227254]
[1757090815553,0.026,4307.8,4307.7,28.29527968]
[1757090815923,0.026,4307.8,4307.7,24.39014327]
[1757090816129,0.026,4307.8,4307.7,28.29514327]
[1757090816560,0.026,4307.8,4307.7,27.09374327]
[1757090817356,0.026,4307.8,4307.7,22.39674327]
[1757090817520,0.3246,4307.8,4307.7,26.30174327]
[1757090818351,0.026,4307.8,4307.7,26.61424327]
[1757090818943,0.026,4307.8,4307.7,26.30174327]
[1757090819454,0.026,4307.8,4307.7,26.30188659]
[1757090819662,0.026,4307.8,4307.7,27.40638659]
[1757090820032,0.026,4307.8,4307.7,26.30188659]
[1757090821154,0.026,4307.8,4307.7,22.39688659]
[1757090821349,0.026,4307.8,4307.7,26.30188659]
[1757090821949,0.3246,4307.8,4307.7,26.30188659]
[1757090822552,1.2884,4307.8,4307.7,5.48245503]
[1757090822878,1.2884,4307.8,4307.7,6.44197148]
[1757090823165,1.2884,4307.8,4307.7,18.62054706]
[1757090823327,1.2884,4307.8,4307.7,14.71454706]
[1757090823730,1.2884,4307.8,4307.7,4.11954706]
[1757090824086,3.60977053,4307.8,4307.7,0.21454706]
[1757090824265,1.2884,4307.8,4307.7,0.21454706]
[1757090824861,3.60977053,4307.8,4307.7,0.21454706]
[1757090825330,1.2884,4307.8,4307.7,0.21454706]
[1757090825571,0.7889,4307.8,4307.7,2.53597148]
[1757090825773,0.3246,4307.8,4307.7,2.53597148]
[1757090826080,1.2884,4307.8,4307.7,2.53597148]
[1757090826589,1.2884,4307.8,4307.7,0.21454706]
[1757090826748,1.42884,4307.8,4307.7,0.21454706]
[1757090827245,3.75021053,4307.8,4307.7,0.21454706]
[1757090827438,1.42884,4307.8,4307.7,0.21454706]
[1757090828337,3.75021053,4307.8,4307.7,0.21454706]
[1757090828539,0.8241,4307.8,4307.4,0.21467568]
[1757090828775,0.8241,4307.8,4307.5,4.11967568]
[1757090828776,1.0798,4307.7,4307.5,4.11967568]
[1757090828942,0.6155,4307.7,4307.6,4.12467568]
[1757090829340,0.2933,4307.7,4307.6,6.44615399]
[1757090830377,0.026,4307.8,4307.7,5.32142442]
[1757090830581,0.026,4307.8,4307.7,6.4743001]
[1757090830760,0.026,4307.8,4307.7,6.9026001]
[1757090831138,0.026,4307.8,4307.7,7.3486001]
[1757090831371,0.026,4307.8,4307.7,9.61650807]
[1757090831986,0.026,4307.8,4307.7,11.32650807]
[1757090832786,1e-08,4307.8,4307.7,12.00250807]
[1757090833290,1e-08,4307.8,4307.7,26.50250807]
[1757090833584,1e-08,4307.8,4307.7,36.96664176]
[1757090834290,1e-08,4307.8,4307.7,30.42350807]
[1757090834461,1e-08,4307.8,4307.7,36.96664176]
[1757090835393,1e-08,4307.8,4307.7,26.50250807]
[1757090835597,1e-08,4307.8,4307.7,36.96964176]
[1757090835963,1e-08,4307.8,4307.7,36.51464176]
[1757090836559,1e-08,4307.8,4307.7,19.13858365]
[1757090836898,1.23680001,4307.8,4307.7,0.66067568]
[1757090837095,1.23680001,4307.8,4307.7,4.58667568]
[1757090837296,1.23680001,4307.8,4307.7,4.14067568]
[1757090837469,1.23680001,4307.8,4307.7,6.4621001]
[1757090837671,1.23680001,4307.8,4307.7,4.14067568]
[1757090837876,1.36048001,4307.8,4307.7,4.14067568]
[1757090838060,3.68185054,4307.8,4307.7,0.21467568]
[1757090839095,1.23680001,4307.8,4307.7,0.21467568]
[1757090839314,0.73930001,4307.8,4307.7,0.21467568]
[1757090839602,1.23680001,4307.8,4307.7,0.21467568]
[1757090840997,1.23680001,4307.8,4307.6,3.926]
[1757090840998,3.55817054,4307.8,4307.4,3.926]
[1757090841292,3.55817054,4307.8,4307.0,14.5]
[1757090841293,8.86463729,4307.6,4307.5,0.21452874]
[1757090841695,10.10143729,4307.6,4307.5,0.21452874]
[1757090841900,7.77993369,4307.6,4307.5,0.21452874]
[1757090842198,1.2368,4307.6,4307.5,0.21452874]
[1757090842913,0.116,4307.5,4307.3,0.21452874]
[1757090843098,2.43753221,4307.5,4307.4,0.21452874]
[1757090843468,2.73083221,4307.5,4307.3,0.21452874]
[1757090843801,2.32167923,4307.3,4306.8,0.029]
[1757090843975,2.32167923,4307.3,4306.9,0.21453345]
[1757090843976,2.32177899,4307.1,4306.9,0.21453345]
[1757090844184,2.32177899,4307.1,4307.0,0.21453345]
[1757090844383,1.2368,4307.1,4307.0,0.21453345]
[1757090844604,0.7393,4307.1,4307.0,0.21453345]
[1757090844806,1.2368,4307.1,4307.0,0.21453345]
[1757090845109,3.55854781,4307.1,4306.9,0.21453345]
[1757090845408,0.446,4307.0,4306.9,0.21453345]
[1757090845874,1.2368,4307.0,4306.9,0.21453345]
[1757090846279,3.55860171,4307.0,4306.9,0.21453345]
[1757090846756,3.55860171,4307.0,4306.8,0.029]
[1757090846757,2.32185562,4306.9,4306.8,0.029]
[1757090847036,6.22985562,4306.9,4306.8,0.029]
[1757090847237,6.67465562,4306.9,4306.8,0.029]
[1757090847921,7.46665562,4306.9,4306.8,0.029]
[1757090848342,7.46665562,4306.9,4306.4,0.004]
[1757090848343,2.32207128,4306.5,4306.4,0.004]
[1757090848504,9.25007128,4306.5,4306.4,0.004]
[1757090848703,12.98887128,4306.5,4306.4,0.004]
[1757090848930,30.448109,4306.5,4306.4,0.004]
[1757090849203,25.728109,4306.5,4306.4,0.004]
[1757090849401,29.657109,4306.5,4306.4,0.004]
[1757090850633,30.449109,4306.5,4306.4,0.004]
[1757090851551,3.11428698,4306.1,4304.8,0.025]
[1757090851706,7.04428698,4306.1,4304.8,0.025]
[1757090851903,11.28108698,4306.1,4304.8,0.025]
[1757090852515,10.48808698,4306.1,4304.8,0.025]
[1757090852715,10.48808698,4306.1,4304.8,2.34797368]
[1757090853010,10.48808698,4306.1,4304.8,0.025]
[1757090853917,10.48808698,4306.1,4305.0,2.32287561]
[1757090854278,10.48808698,4306.1,4306.0,1e-08]
[1757090854279,11.28008698,4306.1,4306.0,1e-08]
[1757090854569,2.32293433,4304.9,4304.8,0.025]
[1757090854775,23.71217205,4304.9,4304.8,0.025]
[1757090855070,11.28173433,4304.9,4304.8,0.025]
[1757090855356,28.74097205,4304.9,4304.8,0.025]
[1757090855560,11.28273433,4304.9,4304.8,0.025]
[1757090858259,3.11509622,4304.6,4304.2,0.004]
[1757090858433,20.57449585,4304.3,4304.2,0.004]
[1757090858633,24.79779585,4304.3,4304.2,0.004]
[1757090858868,8.28205813,4304.3,4304.2,0.004]
[1757090860962,6.54555813,4304.3,4304.2,0.004]
[1757090861462,6.98865813,4304.3,4304.2,0.004]
[1757090861762,3.11531211,4304.2,4304.1,0.004]
[1757090861959,3.23131211,4304.2,4304.1,0.004]
[1757090862273,4.42741211,4304.2,4304.1,0.004]
[1757090862434,8.35741211,4304.2,4304.1,0.004]
[1757090862972,4.42741211,4304.2,4304.1,0.004]
[1757090863141,8.35641211,4304.2,4304.1,0.004]
[1757090863529,3.11547405,4303.9,4303.8,0.029]
[1757090863866,6.23152804,4303.8,4303.7,0.004]
[1757090864062,6.52522804,4303.8,4303.7,0.004]
[1757090864271,7.42762804,4303.8,4303.7,0.004]
[1757090866080,2.32401403,4302.9,4302.3,0.004]
[1757090866401,7.04401403,4302.9,4302.3,0.004]
[1757090866684,2.32428412,4302.4,4302.3,0.004]
[1757090866868,25.42552184,4302.4,4302.3,0.004]
[1757090867197,26.16232184,4302.4,4302.3,0.004]
[1757090867676,26.62162184,4302.4,4302.3,0.004]
[1757090867877,27.41362184,4302.4,4302.3,0.004]
[1757090868243,30.41362184,4302.4,4302.3,0.004]
[1757090868752,29.95332184,4302.4,4302.3,0.004]
[1757090869479,26.48362184,4302.4,4302.3,0.004]
[1757090869683,30.41462184,4302.4,4302.3,0.004]
[1757090870260,29.51122184,4302.4,4302.3,0.004]
[1757090870662,7.82828412,4302.4,4302.3,0.3126]
[1757090870873,11.75828412,4302.4,4302.3,0.3126]
[1757090871195,11.75828412,4302.4,4302.3,0.004]
[1757090871396,12.05198412,4302.4,4302.3,0.004]
[1757090873565,8.12198412,4302.4,4302.3,0.004]
[1757090873896,12.04998412,4302.4,4302.3,0.004]
[1757090874268,29.95232184,4302.4,4302.3,0.004]
[1757090874470,30.41162184,4302.4,4302.3,0.004]
[1757090874668,25.58122184,4302.4,4302.3,0.004]
[1757090874872,29.50922184,4302.4,4302.3,0.004]
[1757090875389,29.95232184,4302.4,4302.3,0.004]
[1757090875893,30.41162184,4302.4,4302.3,0.004]
[1757090877806,25.58122184,4302.4,4302.3,0.004]
[1757090878400,29.50822184,4302.4,4302.3,0.004]
[1757090878605,26.02432184,4302.4,4302.3,0.004]
[1757090878785,29.50722184,4302.4,4302.3,0.004]
[1757090879158,22.96323772,4302.4,4302.3,0.3126]
[1757090879459,9.43,4302.4,4302.3,0.3126]
[1757090879664,11.75428412,4302.4,4302.3,0.004]
[1757090880213,9.7237,4302.4,4302.3,0.004]
[1757090880522,11.75428412,4302.4,4302.3,0.004]
[1757090880662,1.712,4302.4,4302.3,0.3126]
[1757090880863,1.712,4302.4,4302.3,1.2331]
[1757090881100,5.639,4302.4,4302.3,1.2331]
[1757090881308,0.116,4302.6,4302.3,1.35641]
[1757090881464,0.116,4302.6,4302.5,2.32423009]
[1757090881882,3.931,4302.6,4302.5,3.55333009]
[1757090882124,1.713,4303.4,4302.5,3.55333009]
[1757090882125,0.116,4302.9,4302.8,2.32406804]
[1757090882332,0.001,4303.8,4303.7,2.32358203]
[1757090882691,0.001,4303.8,4303.7,3.55268203]
[1757090883193,0.001,4303.8,4303.7,4.15191498]
[1757090883388,0.001,4303.8,4303.7,7.2911508]
[1757090883594,0.001,4303.8,4303.7,7.26791498]
[1757090883790,0.001,4303.8,4303.7,21.76791498]
[1757090884341,0.001,4303.8,4303.7,22.55991498]
[1757090885214,1e-08,4304.8,4304.6,2.32309622]
[1757090885414,1e-08,4304.8,4304.7,5.78766832]
[1757090885742,1e-08,4304.8,4304.7,7.01676832]
[1757090886344,1e-08,4304.8,4304.7,21.51676832]
[1757090887336,1e-08,4304.8,4304.7,18.51676832]
[1757090887523,1e-08,4304.8,4304.7,3.55214225]
[1757090888104,1e-08,4304.8,4304.5,14.5]
[1757090888438,1e-08,4304.8,4303.8,0.4848]
[1757090888439,0.2937,4304.6,4303.8,0.4848]
[1757090888639,2.32322151,4304.4,4303.6,2.32359026]
[1757090888842,2.32326511,4304.3,4303.5,2.32367094]
[1757090889045,3.942,4304.5,4303.5,2.32367094]
[1757090889046,2.32322123,4304.4,4303.5,2.32367094]
[1757090889342,3.942,4304.5,4303.8,2.3234828]
[1757090889546,3.942,4304.5,4303.0,2.32391392]
[1757090889547,0.289,4303.9,4303.0,0.4394]
[1757090889735,3.943,4303.8,4303.1,0.4551]
[1757090889934,3.943,4303.9,4303.7,0.2982]
[1757090891057,3.943,4303.9,4303.4,2.32370311]
[1757090891264,3.943,4303.9,4303.4,0.4394]
[1757090891428,3.943,4303.9,4303.8,0.2982]
[1757090891846,3.943,4303.9,4303.5,2.32369001]
[1757090892052,2.32329573,4304.3,4303.8,0.2982]
[1757090892252,2.32318462,4304.5,4303.8,0.2982]
[1757090892581,3.94,4304.4,4303.9,2.32347362]
[1757090892785,3.94,4304.3,4303.9,0.4394]
[1757090892932,1e-08,4304.8,4304.2,0.2982]
[1757090893246,1e-08,4304.8,4303.8,2.3235001]
[1757090893247,6.26308881,4304.7,4303.8,2.32349735]
[1757090893450,2.32324579,4304.4,4303.7,2.32355081]
[1757090893647,0.4279,4304.6,4303.4,0.4551]
[1757090893648,0.001,4303.9,4303.4,0.4551]
[1757090893852,0.289,4303.8,4303.2,2.32380002]
[1757090894174,0.289,4303.8,4303.1,0.4394]
[1757090894175,3.943,4303.9,4303.7,0.2982]
[1757090894400,6.266477,4303.9,4303.7,0.2982]
[1757090894691,6.26647882,4303.9,4303.7,0.2982]
[1757090894891,2.32352804,4303.8,4303.2,2.32383419]
[1757090895092,3.943,4303.9,4303.1,0.4394]
[1757090895300,3.943,4303.9,4303.7,0.2982]
[1757090895301,0.001,4303.9,4303.7,0.2982]
[1757090895465,3.941,4303.8,4303.7,0.2982]
[1757090896484,2.32447459,4303.9,4303.7,0.2982]
[1757090896689,0.116,4303.7,4303.4,0.4394]
[1757090896891,0.116,4303.7,4303.6,0.2982]
[1757090897094,0.116,4303.7,4303.2,2.32384064]
[1757090897294,0.116,4303.7,4303.3,2.32379375]
[1757090897484,2.43958654,4303.7,4303.2,2.32381491]
[1757090897792,2.43958654,4303.7,4303.1,2.32388736]
[1757090898305,0.116,4303.5,4303.1,2.32389029]
[1757090898516,0.116,4303.5,4303.0,0.8945]
[1757090898517,0.116,4303.5,4303.2,2.32383433]
[1757090898828,0.116,4303.5,4303.4,0.2982]
[1757090898963,0.116,4303.5,4302.9,2.32400814]
[1757090899397,0.116,4303.5,4303.2,2.3238495]
[1757090899613,0.116,4303.5,4303.4,2.62194401]
[1757090899970,0.116,4303.5,4303.4,3.51644401]
[1757090901580,3.937,4303.8,4303.7,2.32358203]
[1757090901777,0.117,4303.9,4303.7,1.1927]
[1757090901975,4.054,4303.9,4303.7,1.1927]
[1757090902479,4.054,4303.9,4303.7,3.5162725]
[1757090902669,4.054,4303.9,4303.7,1.1927]
[1757090903108,4.054,4303.9,4303.6,2.32362088]
[1757090903376,2.32370115,4303.5,4303.2,4.2]
[1757090903792,0.4279,4303.8,4303.2,4.2]
[1757090903793,2.32365578,4303.6,4303.2,4.2]
[1757090903987,2.32360813,4303.7,4303.2,4.2]
[1757090904292,2.32360813,4303.7,4303.2,5.0945]
[1757090904474,3.936,4303.6,4303.2,5.0945]
[1757090904676,2.32372457,4303.5,4303.2,4.2]
[1757090905004,2.61279801,4303.3,4303.2,4.2]
[1757090905594,2.32379801,4303.3,4303.2,4.2]
[1757090905792,3.936,4303.6,4303.2,4.4982]
[1757090905990,2.32378129,4303.4,4303.2,4.4982]
[1757090906198,2.32379801,4303.3,4303.2,4.2]